{"text_format":"3","workbook":"xlsx","n_sheets":2,"sheets":["Postmen North (Mpumalanga)","Postmen KZN"],"not_rendered":{"external_links":1,"defined_names":2},"read":"whole","date_system":"1900"}

{"sheet":"Postmen North (Mpumalanga)","index":0,"n_rows":55,"n_cols":237,"rows_kept":55,"merged":[[0,2,0,13],[1,0,1,3],[1,9,1,12],[2,0,3,0],[2,1,3,1],[2,2,3,2],[2,3,3,3],[2,4,3,4],[2,5,3,5],[2,6,3,6],[2,7,3,7],[2,8,3,8],[2,13,3,13],[5,0,7,0],[5,1,7,1],[5,2,7,2],[5,3,7,3],[5,7,7,7],[5,8,7,8],[5,9,7,9],[5,10,7,10],[5,11,7,11],[5,12,7,12],[5,13,7,13],[8,0,14,0],[8,1,14,1],[8,2,14,2],[8,3,14,3],[8,7,14,7],[8,8,14,8],[8,9,14,9],[8,10,14,10],[8,11,14,11],[8,12,14,12],[8,13,14,13],[16,0,17,0],[16,1,17,1],[16,2,17,2],[16,3,17,3],[16,7,17,7],[16,8,17,8],[16,9,17,9],[16,10,17,10],[16,11,17,11],[16,12,17,12],[16,13,17,13],[18,0,20,0],[18,1,20,1],[18,2,20,2],[18,3,20,3],[18,7,20,7],[18,8,20,8],[18,9,20,9],[18,10,20,10],[18,11,20,11],[18,12,20,12],[18,13,20,13],[21,0,26,0],[21,1,26,1],[21,2,26,2],[21,3,26,3],[21,7,26,7],[21,8,26,8],[21,9,26,9],[21,10,26,10],[21,11,26,11],[21,12,26,12],[21,13,26,13],[27,0,39,0],[27,1,39,1],[27,2,39,2],[27,3,39,3],[27,7,39,7],[27,8,39,8],[27,9,39,9],[27,10,39,10],[27,11,39,11],[27,12,39,12],[27,13,39,13],[40,0,41,0],[40,1,41,1],[40,2,41,2],[40,3,41,3],[40,7,41,7],[40,8,41,8],[40,9,41,9],[40,10,41,10],[40,11,41,11],[40,12,41,12],[40,13,41,13],[45,0,45,12],[46,0,46,12],[47,0,47,1]]}
[null,null,"RFQ 26-27-71 TRANSPORTATION OF POSTMEN"]
["Postman North - Mpumulanga Province",{"$nulls":8},"Provide CPK for all 4 Kilometer ranges indicated (VAT Inclusive)"]
["Depots","Collection point name Depot / MCP","Address","Province (of Collection Point)","Expected delivery point Branch / Hub","Distance km return Trip"," Expected Frequency","Number of Vehicles","Type of vehicle required","Cost per Kilometer (CPK)             VAT inclusive        ","Cost per Kilometer (CPK)            VAT Inclusive","Cost per Kilometer (CPK)       VAT Inclusive","Cost per Kilometer (CPK)        VAT inclusive","Average CPK"]
[{"$nulls":9},"    1-50km","51- 100km","101- 200km","201 km and above"]
["1","Evander","1 Ghent Street Evander","Mpumalanga","Balfour/ Greylingstad  ",250,"2 x month",1,"7 Seater",{"$nulls":4},{"$f":"AVERAGE(J5:M5)","v":{"$error":"#DIV/0!"}}]
["2","Bethal","42 Chris Hani Street Bethal","Mpumalanga","Davel",60,"1 x month",1,"7 Seater",{"$nulls":4},{"$f":"AVERAGE(J6:M6)","v":{"$error":"#DIV/0!"}}]
[{"$nulls":4},"Morgenzon",90,"1 x month",{"$nulls":6},{"$error":"#DIV/0!"}]
[{"$nulls":4},"Thuthukani",110,"1 x month",{"$nulls":6},{"$error":"#DIV/0!"}]
["3","Ermelo","28 Jan van Riebeeck Street Ermelo","Mpumalanga","Amsterdam & Sheepmoor",220,"2 x month",1,"7 Seater",{"$nulls":4},{"$error":"#DIV/0!"}]
[{"$nulls":4},"Carolina",152,"2 x month",{"$nulls":6},{"$error":"#DIV/0!"}]
[{"$nulls":4},"Fernie North & Lothair",230,"2 x month",{"$nulls":6},{"$error":"#DIV/0!"}]
[{"$nulls":4},"Chrissiesmeer & Warburton & Lochiel",250,"2 x month",{"$nulls":6},{"$error":"#DIV/0!"}]
[{"$nulls":4},"Mpuluzi",250,"2 x month",{"$nulls":6},{"$error":"#DIV/0!"}]
[{"$nulls":4},"Middelburg",250,"5 x week",{"$nulls":6},{"$error":"#DIV/0!"}]
[{"$nulls":4},"Hendrina",150,"2 x month",{"$nulls":6},{"$error":"#DIV/0!"}]
["4","Piet Retief","Cnr Kruger & Mark Street Piet Retief","Mpumalanga","Driefontein / Iswepe",260,"1 x month",1,"5  Seater",{"$nulls":4},{"$error":"#DIV/0!"}]
["5","Delmas Depot","Shop 26 Willow Brook Square, Van der Walt Street, Delmas.","Mpumalanga","Sundra / Eloff",50,"2 x month",1,"7 Seater",{"$nulls":4},{"$error":"#DIV/0!"}]
[{"$nulls":4},"Middelburg",200,"2 x month",{"$nulls":6},{"$error":"#DIV/0!"}]
["6","Witbank Depot","14 - 18 Cnr Kruger & Mandela Street Witbank","Mpumalanga","Witbank","100","4 x x week",1,"7 Seater with trailer",{"$nulls":4},{"$error":"#DIV/0!"}]
[{"$nulls":4},"Phola",60,"4 x x month",{"$nulls":6},{"$error":"#DIV/0!"}]
[{"$nulls":4},"Middelburg",100,"1 x week",{"$nulls":6},{"$error":"#DIV/0!"}]
["7","Middelburg","Cnr SADC & OR Thambo Street Middelburg","Mpumalanga","Middelburg",100,"5 x week",1,"7 Seater with trailer",{"$nulls":4},{"$error":"#DIV/0!"}]
[{"$nulls":4},"Witbank",150,"4 x week",{"$nulls":6},{"$error":"#DIV/0!"}]
[{"$nulls":4},"Pullenshope",110,"1 x month",{"$nulls":6},{"$error":"#DIV/0!"}]
[{"$nulls":4},"Hendrina",140,"1 x month",{"$nulls":6},{"$error":"#DIV/0!"}]
[{"$nulls":4},"Rietkuil",104,"1 x month",{"$nulls":6},{"$error":"#DIV/0!"}]
[{"$nulls":4},"Moteti/Dennilton",250,"2 x month",{"$nulls":6},{"$error":"#DIV/0!"}]
["8","Nelspruit","11 Voortrekker Street","Mpumalanga","Barbeton",120,"1 x week",2,"7 Seater with trailer",{"$nulls":4},{"$error":"#DIV/0!"}]
[{"$nulls":4},"Graskop streets",180,"1 x month",{"$nulls":6},{"$error":"#DIV/0!"}]
[{"$nulls":4},"Kanyamazane lobbie, Kayedwas. Kabokweni Lobbies",120,"2 x week",{"$nulls":6},{"$error":"#DIV/0!"}]
[{"$nulls":4},"White river",50,"1 x week",{"$nulls":6},{"$error":"#DIV/0!"}]
[{"$nulls":4},"Waterval Boven",180,"1  x month",{"$nulls":6},{"$error":"#DIV/0!"},{"$nulls":222},1]
[{"$nulls":4},"Thulamahashe",250,"1 x month",{"$nulls":6},{"$error":"#DIV/0!"}]
[{"$nulls":4},"Malelane",120,"1 x month",{"$nulls":6},{"$error":"#DIV/0!"}]
[{"$nulls":4},"Sabie",124,"2 x month",{"$nulls":6},{"$error":"#DIV/0!"}]
[{"$nulls":4},"Nelspruit depot",60,"3 x week",{"$nulls":6},{"$error":"#DIV/0!"}]
[{"$nulls":4},"Nelspruit lobbies",75,"3 x week",{"$nulls":6},{"$error":"#DIV/0!"}]
[{"$nulls":4},"Shongwe mission( lobbies",{"v":194.6,"d":"195"},"2 x month",{"$nulls":6},{"$error":"#DIV/0!"}]
[{"$nulls":4},"Elukwatini lobbies",{"v":242.6,"d":"243"},"1 x week",{"$nulls":6},{"$error":"#DIV/0!"}]
[{"$nulls":4},"Kwalugedlane -see shongwe mission",219,"2 x month",{"$nulls":6},{"$error":"#DIV/0!"}]
["9","Belfast","Cnr Fitzgerald & Bhukumez Masango Driver Belfast","Mpumalanga","Dullstroom ",70,"2 xmonth",1,"7 seater",{"$nulls":4},{"$error":"#DIV/0!"}]
[{"$nulls":4},"Machadadorp (entokozweni)",72,"2 x month",{"$nulls":6},{"$error":"#DIV/0!"}]
["10","Sabie","Sabie Main street","Mpumalanga","Graskop lobbies",160,"1 x month",1,"7 seater",{"$nulls":4},{"$error":"#DIV/0!"}]
[{"$nulls":7},{"$f":"SUM(H5:H43)","v":11}]
["Notes:"]
["The estimated frequency are provided to assist bidders with capacity planning and pricing."]
["The estimated frequency relates to the route requirement, not to the guaranteed deployment of every vehicle, it is volume dependant. SAPO cannot guarantee trips, it is volume dependant"]
["All prices (CPK) must include VAT"]
[]
["SIGNATURE: …………………………………………………………."]
["NAME OF DELEGATED SIGNATORY:        ..........................................................…….."]
["(PRINT)       in his capacity of"]
["DESIGNATION OF SIGNATORY:…………………………………."]
["(PRINT)      who warrants his authority to sign on behalf of "]
["NAME OF BIDDER (COMPANY)……………………………………………….."]

{"sheet":"Postmen KZN","index":1,"n_rows":49,"n_cols":14,"rows_kept":49,"merged":[[0,1,0,13],[1,0,1,4],[1,9,1,12],[2,0,3,0],[2,1,3,1],[2,2,3,2],[2,3,3,3],[2,4,3,4],[2,5,3,5],[2,6,3,6],[2,7,3,7],[2,8,3,8],[4,0,12,0],[4,1,12,1],[4,2,12,2],[4,3,12,3],[4,7,12,7],[4,8,12,8],[4,9,12,9],[4,10,12,10],[4,11,12,11],[4,12,12,12],[4,13,12,13],[13,0,14,0],[13,1,14,1],[13,2,14,2],[13,7,14,7],[13,8,14,8],[13,9,14,9],[13,10,14,10],[13,11,14,11],[13,12,14,12],[13,13,14,13],[15,0,17,0],[15,1,17,1],[15,2,17,2],[15,7,17,7],[15,8,17,8],[15,9,17,9],[15,10,17,10],[15,11,17,11],[15,12,17,12],[15,13,17,13],[19,0,20,0],[19,1,20,1],[19,2,20,2],[19,7,20,7],[19,8,20,8],[19,9,20,9],[19,10,20,10],[19,11,20,11],[19,12,20,12],[19,13,20,13],[21,0,22,0],[21,1,22,1],[21,2,22,2],[21,3,22,3],[21,7,22,7],[21,8,22,8],[21,9,22,9],[21,10,22,10],[21,11,22,11],[21,12,22,12],[21,13,22,13],[25,0,27,0],[25,1,27,1],[25,2,27,2],[25,7,27,7],[25,8,27,8],[25,9,27,9],[25,10,27,10],[25,11,27,11],[25,12,27,12],[25,13,27,13],[28,7,29,7],[28,8,29,8],[28,9,29,9],[28,10,29,10],[28,11,29,11],[28,12,29,12],[28,13,29,13],[30,7,31,7],[30,8,31,8],[30,9,31,9],[30,10,31,10],[30,11,31,11],[30,12,31,12],[30,13,31,13],[32,0,33,0],[32,1,33,1],[32,2,33,2],[32,7,33,7],[32,8,33,8],[32,9,33,9],[32,10,33,10],[32,11,33,11],[32,12,33,12],[32,13,33,13],[35,0,36,0],[35,1,36,1],[35,2,36,2],[35,7,36,7],[35,8,36,8],[35,9,36,9],[35,10,36,10],[35,11,36,11],[35,12,36,12],[35,13,36,13],[39,1,39,13],[40,1,40,13],[41,1,41,2]]}
[null,"RFQ TRANSPORTATION OF POSTMEN"]
["Postmen KZN - KZN Province",{"$nulls":8},"Provide CPK for all 4 Kilometer ranges indicated (VAT Inclusive)"]
["Depots","Collection point name Depot / MCP","Address","Province (of Collection Point)","Expected delivery point Branch / Hub","Distance km return Trip","Expected weekly Frequency","Number of vehicles required for route","Indicate the type of vehicle the service provider will supply","Cost per Kilometer (CPK)             VAT inclusive        ","Cost per Kilometer (CPK)            VAT Inclusive","Cost per Kilometer (CPK)       VAT Inclusive","Cost per Kilometer (CPK)        VAT inclusive","Average CPK"]
[{"$nulls":9},"    1-50km","51- 100km","101- 200km","201 km and above"]
[1,"Durmail","95 Masabalala Yengwa Avenue, Durban ","Kwazulu Natal","Durban north/umhlanga/quaary heights/Inanda /ndwede/ Kwamashu areas",60,5,5,"7 seater with Trailer",{"$nulls":4},{"$f":"AVERAGE(J5:M13)","v":{"$error":"#DIV/0!"}}]
[{"$nulls":4},"whole of Kwa mashu area/Ntuzuma/siyanda- Durban North and Inanda areas",100,4]
[{"$nulls":4},"Inanda /ndwede/ Durban North and Kwamashu Areas",90,3]
[{"$nulls":4},"Umbilo/morningside /greyville/newlands east /west reseviour hills/clare estate/part kenville/Mayville /overport/chestherville",45,4]
[{"$nulls":4},"Marbleray -  Umbilo/morningside /greyville/newlands east /west reseviour hills/clare estate/part kenville/Mayville /overport/chestherville",50,4]
[{"$nulls":4},"Greyville - Durban cbd/Morningside",35,4]
[{"$nulls":4},"Bluff -  Bluff/Wenthworth/Merebank",80,4]
[{"$nulls":4},"Mayville   Umbilo/Morningside /Greyville/Newlands east /West reseviour hills/Clare estate/Part kenville/Mayville /Overport/Chesterville",35,4]
[{"$nulls":4},"Umlazi /Ispingo/Ntokozweni urban and rural/ Lamontville",90,4]
[2,"Pinetown","1 Chancary Lane, Pinetown","Kwazulu Natal","Pinetown /hillcrest /shongweni kloof gillets /new germany / Hammersdale/ Eston / Richmond/ Cato Rigde/Savanna Park/ Kwandengezi/St Wendolins/Kwaximba/Camperdown",90,5,1,"7 seater with Trailer",{"$nulls":4},{"$f":"AVERAGE(J14:M15)","v":{"$error":"#DIV/0!"}}]
[{"$nulls":3},"Kwazulu Natal","hammmersdale/mpuhulanga/ Pinetown Depot areas",100,3]
[3,"Phoenix","2 Pandora Street, Phoenix ","Kwazulu Natal","verulam /trenance park /ottawa/canelands/phoenix/Mt Edgecombe/Broadlands/ Umhalga / Shaka Head / Shakaaskraal",60,4,1,"7 seater with trailer",{"$nulls":4},{"$f":"AVERAGE(J16:M18)","v":{"$error":"#DIV/0!"}}]
[{"$nulls":3},"Kwazulu Natal","verulam /trenance park /ottawa/canelands/phoenix/Mt Edgecombe/Broadlands/ Umhalga / Shaka Head / Shakaaskraal",45,4]
[{"$nulls":3},"Kwazulu Natal","Tongaat/Bumshela/Ndwedwe",70,4]
[4,"Westville","35 Westville Road","Kwazulu Natal","Westville /Cowies Hill/Berea West/Westville North",70,4,1,"7 Seater",{"$nulls":4},{"$f":"AVERAGE(J19:M19)","v":{"$error":"#DIV/0!"}}]
[5,"Port Shepstone","Cnr Wooley 7 Robinson St, Port Shepstone","Kwazulu Natal","Margate/Port Shepstone/ Kokstad/ Hibberdene/Ifafa/Ramsgate/Port Edward/ Mtuwalume/Umzinto/ Jolivert/Ixopo/ Highflats/Izingolweni/ Munster/Ugu area",100,4,1,"7 seater",{"$nulls":4},{"$f":"AVERAGE(J20:M21)","v":{"$error":"#DIV/0!"}}]
[{"$nulls":3},"Kwazulu Natal","Kokstad",300,1]
[6,"Chatsworth / Malvern","11 Bhakti vendata swami  circle","Kwazulu Natal","Chatsworth/welbedhat/malvern/queensmead/ Shallcross/ Burlington/Lusaka/Umkomaas/Park Rynie/Scottsburgh/Ifafa/Pennington",60,5,1,"7 seater",{"$nulls":4},{"$f":"AVERAGE(J22:M23)","v":{"$error":"#DIV/0!"}}]
[{"$nulls":4},"Chatsworth/welbedhat/malvern/queensmead/ Shallcross/ Burlington/Lusaka/",60,4]
[7,"Amanzimtoti ","1 Bjorseth Cresent, Amanzimtoti","Kwazulu Natal","Amazimtoti/Winklespuirt/Illovo beach/Doonside/ Kingsburgh/ Seadoone/Umkomaas/Park Rynie/Scottsburgh/Ifafa/Pennington",70,5,1,"7 seater with trailer",{"$nulls":4},{"$f":"AVERAGE(J24:M24)","v":{"$error":"#DIV/0!"}}]
[8,"Mobeni / Merged with Yellowood Park","Swallow and Pelican Road","Kwazulu Natal","Mobeni/ispingo/ Bayview/Yellowwood park",50,4,1,"7 seater",{"$nulls":4},{"$f":"AVERAGE(J25:M25)","v":{"$error":"#DIV/0!"}}]
[9,"Newcastle","60 Scotts Street  Newcastle","Kwazulu Natal","Newcastle/Osizwene/Utrecht/ Dannhauser/ Ngome / Amajuba/",45,3,1,"5 seater with trailer",{"$nulls":4},{"$f":"AVERAGE(J26:M28)","v":{"$error":"#DIV/0!"}}]
[{"$nulls":3},"Kwazulu Natal","Picking Postmen at Newcastle - Pongola mail collection, walks",300,1]
[{"$nulls":3},"Kwazulu Natal","Vryheid/Abaqulusi",110,2]
[10,"Richards Bay","52 Anglers Road, Meer en See","Kwazulu Natal","richards bay/ St Lucia/Mtubatuba/Ilembe/Umkhanyakude",90,4,1,"7 seater",{"$nulls":4},{"$f":"AVERAGE(J29:M30)","v":{"$error":"#DIV/0!"}}]
[11,"Eshowe ","Cnr Patrick & Hutchinson Street Eshowe 3815","Kwazulu Natal","Eshowe/Gingindlovu/Mthunzin",60,5]
[12,"Umhlali","1 Old Main Rd","Kwazulu Natal","Umhali/ballito",70,4,1,"7 seater",{"$nulls":4},{"$f":"AVERAGE(J31:M32)","v":{"$error":"#DIV/0!"}}]
[13,"Stanger","15 Jackson street Stanger","Kwazulu Natal","stanger/mandeni/mapamulo/ Ilembe",90,4]
[14,"Pietermaritzburg","21 Willowton Rd, Pietermaritzburg","Kwazulu Natal","Richmond/ PMB/Northdale/Hilton/Bergville / Cato Ridge/ Dalton/ Dundee/ Estcourt/ Ezakhei/ Glencoe/Greytown/Howick/Nottingham/Weenen","125 / 100",5,2,"7 seater with Trailer",{"$nulls":4},{"$f":"AVERAGE(J33:M34)","v":{"$error":"#DIV/0!"}}]
[{"$nulls":3},"Kwazulu Natal","Estcourt/ladysmith/ mooi river/winterton,take postmen from Howick and PMB depot",250,3]
[15,"Howick","Somme Street, Central Howick","Kwazulu Natal","Howick / Msunduzi/ Estcourt",120,2,1,"7 seater with Trailer",{"$nulls":4},{"$f":"AVERAGE(J35:M35)","v":{"$error":"#DIV/0!"}}]
[16,"Ladysmith","157 Murchison St, Ladysmith","Kwazulu Natal","Ladysmith/Weenen/Tugela Ferry/Pomeroy/ Mooi River/ Colenso/winterton",50,5,1,"7 seater with Trailer",{"$nulls":4},{"$f":"AVERAGE(J36:M37)","v":{"$error":"#DIV/0!"}}]
[{"$nulls":3},"Kwazulu Natal","Pick up from Ladysmith PO,  service Dundee, Sibongile/Umzinyathi. Assist Newcastle area",160,2]
[{"$nulls":7},{"$f":"SUM(H5:H37)","v":19}]
[null,"Notes:"]
[null,"The estimated frequency are provided to assist bidders with capacity planning and pricing."]
[null,"The estimated frequency relates to the route requirement, not to the guaranteed deployment of every vehicle, it is volume dependant. SAPO cannot guarantee trips, it is volume dependant"]
[null,"All prices (CPK) must include VAT"]
[]
[null,"SIGNATURE: …………………………………………………………."]
[null,"NAME OF DELEGATED SIGNATORY:        ..........................................................…….."]
[null,"(PRINT)       in his capacity of"]
[null,"DESIGNATION OF SIGNATORY:…………………………………."]
[null,"(PRINT)      who warrants his authority to sign on behalf of "]
[null,"NAME OF BIDDER (COMPANY)……………………………………………….."]